bitfinex/quotes_ETHUSD_20260226
["timestamp","ask_amount","ask_price","bid_price","bid_amount"]
[1772134838851,0.79384267,2024.7,2023.8,2.02316978]
[1772134839126,2.77526314,2025.5,2024.1,0.78786985]
[1772134839127,0.79384267,2025.1,2024.1,0.78786985]
[1772134839302,0.79384267,2025.0,2024.1,0.78786985]
[1772134839802,0.00966634,2024.9,2024.1,0.78786985]
[1772134839999,0.86043002,2024.8,2023.9,0.80174317]
[1772134840205,0.86043002,2024.6,2023.9,0.80174317]
[1772134840415,0.00966634,2024.9,2024.1,0.80174317]
[1772134840615,0.87009636,2024.9,2024.1,0.80174317]
[1772134840817,0.00966634,2024.9,2024.1,0.80174317]
[1772134841127,0.00966634,2024.9,2024.4,2.03663059]
[1772134841298,2.10472582,2024.9,2024.2,2.03679255]
[1772134841501,0.86043002,2024.8,2024.0,0.80174317]
[1772134842007,0.86043002,2024.8,2023.9,1.23523889]
[1772134842206,0.86043002,2024.8,2023.9,2.03698206]
[1772134842416,0.86043002,2024.8,2023.9,0.80174317]
[1772134842597,0.86043002,2024.8,2023.9,2.03698206]
[1772134842932,0.86043002,2024.8,2023.9,0.80174317]
[1772134843237,0.86043002,2024.8,2024.0,1.23517786]
[1772134843238,0.86043002,2024.6,2024.0,1.23517786]
[1772134843397,0.86043002,2024.6,2023.9,2.03693494]
[1772134843725,0.00966634,2024.5,2023.9,2.03693494]
[1772134844041,0.00966634,2024.5,2024.0,0.80174317]
[1772134844919,0.00966634,2024.5,2024.1,0.001]
[1772134845434,0.00966634,2024.5,2024.1,1.23611684]
[1772134846707,0.86043002,2024.4,2023.3,0.80174317]
[1772134846908,0.86043002,2024.4,2023.4,0.80174317]
[1772134847225,0.86043002,2024.4,2023.3,4.94193229]
[1772134847226,0.00966634,2024.5,2023.6,0.80174317]
[1772134847453,0.00966634,2024.5,2023.8,0.80174317]
[1772134847806,1.24453926,2024.5,2023.8,0.80174317]
[1772134848350,0.00966634,2024.5,2023.8,0.80174317]
[1772134848834,1.24454264,2024.5,2023.8,0.80174317]
[1772134849330,0.86043002,2024.4,2023.7,1.23536097]
[1772134849559,0.86043002,2024.2,2023.5,2.03721394]
[1772134849905,0.86043002,2024.2,2023.5,0.80174317]
[1772134850112,0.86043002,2024.2,2023.3,4.94229943]
[1772134850325,0.86043002,2024.2,2023.4,1.23549573]
[1772134850802,0.86043002,2024.2,2023.3,1.23555593]
[1772134851265,2.09524183,2024.6,2023.7,2.16615428]
[1772134851556,1.262,2024.5,2023.9,1.23523889]
[1772134851726,1.541,2024.5,2023.9,1.23523889]
[1772134852154,0.86043002,2024.5,2023.6,5.74330263]
[1772134852361,2.40143002,2024.5,2023.7,0.80174317]
[1772134852651,0.00966634,2024.4,2023.7,0.80174317]
[1772134852954,0.87009636,2024.4,2023.7,0.80174317]
[1772134853652,2.10508936,2024.4,2023.8,1.23529993]
[1772134853843,0.86043002,2024.3,2023.7,1.23533724]
[1772134854042,0.00966634,2024.4,2023.8,2.16615428]
[1772134854257,0.00966634,2024.4,2023.8,0.80174317]
[1772134855454,1.24460274,2024.4,2023.8,0.80174317]
[1772134855838,0.00966634,2024.4,2023.9,1.23523889]
[1772134856432,0.00966634,2024.4,2023.9,2.03698206]
[1772134859164,0.00966634,2024.4,2024.0,0.001]
[1772134859538,0.002,2024.3,2024.0,0.001]
[1772134859761,0.86043002,2025.2,2024.4,1.2349338]
[1772134859965,0.86043002,2025.4,2024.6,0.80174317]
[1772134860163,0.86043002,2025.2,2024.4,1.2349338]
[1772134860362,0.86043002,2025.2,2024.3,1.23495853]
[1772134861450,0.86043002,2025.2,2024.2,6.30456527]
[1772134861451,0.86043002,2025.2,2024.2,1.23502996]
[1772134861841,0.86043002,2025.0,2024.2,1.23502996]
[1772134862375,0.86043002,2024.8,2024.2,1.23502996]
[1772134863150,0.86043002,2024.7,2024.2,1.23502996]
[1772134864271,2.09519137,2024.7,2024.0,0.001]
[1772134864641,0.86043002,2024.7,2024.0,0.001]
[1772134864859,2.09518316,2024.7,2024.0,0.001]
[1772134865171,0.86043002,2024.7,2024.0,0.001]
[1772134865373,2.09518162,2024.7,2024.0,0.001]
[1772134865553,0.86043002,2024.6,2024.0,0.001]
[1772134866152,1.2348728,2024.5,2024.0,0.001]
[1772134866362,2.0952861,2024.6,2024.0,0.001]
[1772134871185,0.78977856,2024.5,2024.0,0.001]
[1772134872185,2.32477856,2024.6,2024.0,2.06540637]
[1772134872387,2.32577856,2024.6,2024.0,1.23617253]
[1772134872572,0.78977856,2024.5,2024.0,1.23617334]
[1772134873083,0.78977856,2024.5,2024.0,2.06545287]
[1772134873456,2.32477856,2024.6,2024.0,2.06545287]
[1772134873883,2.32477856,2024.6,2024.2,0.001]
[1772134874183,2.02465136,2024.5,2024.2,0.001]
[1772134874386,0.78977856,2024.4,2024.2,0.001]
[1772134874557,0.78977856,2024.3,2024.0,0.001]
[1772134875157,0.78977856,2024.3,2023.8,0.001]
[1772134876085,0.78977856,2024.1,2023.8,0.001]
[1772134876258,6.30449736,2024.4,2023.8,0.001]
[1772134876259,2.02467902,2024.5,2023.8,0.83027953]
[1772134876460,3.56067902,2024.5,2023.8,0.83027953]
[1772134876987,2.02467902,2024.5,2023.8,0.83027953]
[1772134877169,1.536,2024.4,2023.8,0.83027953]
[1772134877371,2.02467902,2024.5,2023.8,0.83027953]
[1772134877888,0.78977856,2024.5,2023.8,0.83027953]
[1772134878184,2.02469536,2024.5,2023.9,1.23523889]
[1772134878386,1.536,2024.4,2023.9,1.23523889]
[1772134878690,0.002,2024.6,2024.0,2.19369064]
[1772134878877,0.002,2026.5,2024.6,0.82927953]
[1772134879068,0.002,2026.5,2025.0,1.36441111]
[1772134879069,0.78977856,2026.1,2025.0,1.36441111]
[1772134879263,0.78977856,2025.9,2025.0,0.82927953]
[1772134879468,0.78977856,2025.9,2024.8,0.82927953]
[1772134880259,2.03308036,2025.8,2025.0,0.82927953]
[1772134880470,1.539,2025.7,2025.0,0.82927953]
[1772134880780,1.539,2025.6,2025.0,0.82927953]
[1772134880977,1.23408036,2025.8,2025.0,0.82927953]
[1772134881182,2.02385892,2025.8,2025.0,0.82927953]
[1772134881384,1.538,2025.7,2025.0,0.82927953]
[1772134881881,0.78977856,2026.1,2025.0,0.82927953]
[1772134882080,0.78977856,2026.1,2025.1,0.82927953]
[1772134882405,1.538,2026.1,2025.3,0.82927953]
[1772134883265,2.02358713,2026.3,2025.3,0.82927953]
[1772134883266,0.78977856,2026.2,2025.3,0.82927953]
[1772134883469,1.538,2026.1,2025.3,0.82927953]
[1772134884190,2.32777856,2026.1,2025.4,1.23432408]
[1772134884488,0.78977856,2026.0,2025.4,1.23432408]
[1772134885187,0.78977856,2026.0,2024.8,4.93859918]
[1772134885188,0.78977856,2025.9,2024.8,4.93859918]
[1772134885378,0.78977856,2025.9,2024.9,0.82927953]
[1772134885585,2.32777856,2025.8,2024.9,0.82927953]
[1772134885783,0.78977856,2025.8,2024.9,0.82927953]
[1772134886373,1.23414128,2025.7,2025.0,1.2345679]
[1772134886690,2.50014128,2025.7,2025.0,1.2345679]
[1772134886897,0.78977856,2025.6,2024.9,0.82927953]
[1772134887088,0.78977856,2025.6,2024.8,1.23468984]
[1772134887588,0.78977856,2025.6,2024.8,2.06396937]
[1772134888074,1.536,2025.5,2024.8,2.06396937]
[1772134888878,1.23431233,2025.5,2024.8,2.06396937]
[1772134889074,1.536,2025.4,2024.8,2.06396937]
[1772134889274,1.536,2025.3,2024.6,0.82927953]
[1772134889477,0.78977856,2025.2,2024.4,3.78158319]
[1772134889673,0.78977856,2025.2,2024.4,4.61086272]
[1772134891180,1.534,2025.1,2024.5,0.82927953]
[1772134891375,2.02422674,2025.2,2024.5,0.82927953]
[1772134891583,4.93753123,2025.4,2024.5,0.82927953]
[1772134891584,1.534,2025.1,2024.5,0.82927953]
[1772134892794,2.02419748,2025.3,2024.5,0.82927953]
[1772134893183,1.23445069,2025.2,2024.6,1.23481181]
[1772134893482,1.533,2025.1,2024.6,1.23481181]
[1772134893782,1.23445069,2025.2,2024.6,2.06409134]
[1772134893783,0.78977856,2025.2,2024.6,2.06409134]
[1772134895481,2.02426025,2025.2,2024.6,2.06409134]
[1772134897223,1.532,2025.1,2024.6,2.06409134]
[1772134897403,1.532,2025.0,2024.6,2.06409134]
[1772134898522,2.02426025,2025.2,2024.6,2.06409134]
[1772134898696,1.532,2025.1,2024.6,2.06409134]
[1772134898899,2.02426025,2025.2,2024.6,2.06409134]
[1772134899424,1.532,2025.1,2024.6,2.06409134]
[1772134899604,1.532,2025.0,2024.6,2.06409134]
[1772134899804,1.532,2024.9,2024.6,2.06409134]
[1772134900000,2.02426025,2025.2,2024.6,2.06409134]
[1772134900205,1.532,2025.1,2024.6,2.06409134]
[1772134900922,2.02426025,2025.2,2024.6,2.06409134]
[1772134901223,1.532,2025.1,2024.6,2.06409134]
[1772134901425,2.02426025,2025.2,2024.6,2.06409134]
[1772134901624,1.532,2025.1,2024.6,2.06409134]
[1772134901927,2.02426025,2025.2,2024.6,2.06409134]
[1772134902222,1.532,2025.1,2024.6,2.06409134]
[1772134902404,1.532,2025.1,2024.7,0.001]
[1772134902604,1.532,2025.0,2024.7,0.001]
[1772134903626,2.02626025,2025.2,2024.7,0.001]
[1772134903924,1.532,2025.1,2024.7,0.001]
[1772134905127,1.532,2025.0,2024.7,0.001]
[1772134905329,2.02626025,2025.2,2024.7,0.001]
[1772134905503,1.532,2024.9,2024.7,0.001]
[1772134906024,1.23452271,2025.1,2024.7,0.001]
[1772134906212,1.532,2024.8,2024.7,0.001]
[1772134908230,1.532,2024.8,2024.2,0.8443368]
[1772134908418,0.799,2024.7,2024.2,0.8443368]
[1772134908803,1.532,2024.6,2024.2,0.8443368]
[1772134909538,2.04836065,2024.9,2024.2,0.8443368]
[1772134909746,1.532,2024.8,2024.2,0.8443368]
[1772134910437,2.76670832,2024.8,2024.3,2.07933161]
[1772134911643,3.58039187,2024.8,2024.3,0.8443368]
[1772134911845,0.81368355,2024.7,2024.1,2.07945085]
[1772134912151,0.81368355,2024.7,2024.1,2.07945258]
[1772134912645,1.23481181,2024.6,2024.1,2.07944771]
[1772134912811,1.23481181,2024.6,2024.1,0.8443368]
[1772134913016,2.04849536,2024.6,2024.1,0.8443368]
[1772134913346,2.04849536,2024.6,2024.1,2.079446]
[1772134913946,2.04849536,2024.6,2024.1,0.8443368]
[1772134914144,2.04849536,2024.6,2024.1,2.07945117]
[1772134915243,3.58038496,2024.8,2024.2,0.8443368]
[1772134915549,0.12706572,2024.7,2024.4,0.8443368]
[1772134916846,0.81368355,2025.0,2024.4,0.8443368]
[1772134917030,1.531,2024.9,2024.4,0.8443368]
[1772134917230,0.002,2024.6,2024.5,2.0792096]
[1772134917429,1.533,2024.8,2024.6,0.8443368]
[1772134917850,1.533,2024.8,2024.5,1.2348728]
[1772134918544,1.533,2024.8,2024.5,2.0792096]
[1772134918740,0.002,2024.8,2024.5,2.0792096]
[1772134918956,1.533,2024.8,2024.5,2.0792096]
[1772134920458,0.002,2025.1,2024.6,0.8443368]
[1772134921734,1.53,2025.3,2024.8,0.8443368]
[1772134921928,1.53,2025.3,2025.0,0.8443368]
[1772134924257,0.81368355,2025.2,2024.6,0.8443368]
[1772134926384,0.81368355,2025.2,2024.7,1.23475082]
[1772134927091,2.04813209,2025.2,2024.7,1.23475082]
[1772134927390,0.81368355,2025.2,2024.7,1.23475082]
[1772134928201,2.04789028,2025.6,2024.8,0.8443368]
[1772134928363,2.04789028,2025.6,2025.0,0.8443368]
[1772134929095,0.81368355,2025.5,2025.0,0.8443368]
[1772134929295,0.81368355,2025.5,2024.9,1.23462887]
[1772134929459,0.81368355,2025.5,2024.8,0.8443368]
[1772134929664,0.81368355,2025.5,2024.7,2.06029312]
[1772134930398,1.23432408,2025.4,2024.9,2.06020806]
[1772134930592,0.8339146,2025.4,2024.9,2.06020806]
[1772134931876,0.8339146,2025.4,2024.9,0.82557919]
[1772134932272,0.8339146,2025.4,2024.9,0.82657919]
[1772134932470,2.07029962,2025.3,2024.9,0.001]
[1772134933677,0.8339146,2025.2,2024.9,0.001]
[1772134933867,0.8339146,2025.1,2024.9,0.001]
[1772134934494,0.8339146,2024.9,2024.7,0.001]
[1772134935298,0.8339146,2024.9,2024.3,0.82657919]
[1772134935615,0.8339146,2024.9,2024.3,0.001]
[1772134936585,1.23468984,2024.8,2024.3,0.001]
[1772134936810,0.8339146,2024.7,2024.3,0.001]
[1772134937005,0.8339146,2024.5,2024.3,0.001]
[1772134937896,0.8339146,2024.5,2023.7,2.06092834]
[1772134938190,0.8339146,2024.5,2023.8,0.001]
[1772134938883,0.8339146,2024.3,2023.8,0.001]
[1772134940893,0.8339146,2024.1,2023.8,0.001]
[1772134941102,0.8339146,2023.9,2023.1,0.82557919]
[1772134943335,0.8339146,2023.7,2022.7,0.82557919]
[1772134943488,1.23529993,2023.8,2023.2,0.82557919]
[1772134943810,0.8339146,2023.7,2023.2,0.82557919]
[1772134944184,0.8339146,2023.7,2023.0,0.82557919]
[1772134944814,0.8339146,2023.7,2022.8,0.82557919]
[1772134945139,0.8339146,2023.5,2022.7,1.23597124]
[1772134945785,2.06945873,2023.4,2022.7,0.82557919]
[1772134945984,1.53,2023.3,2022.7,0.82557919]
[1772134946390,2.3639146,2023.3,2022.7,0.82557919]
[1772134947222,0.8339146,2023.2,2022.9,0.001]
[1772134947517,1.53,2023.3,2022.9,0.82657919]
[1772134947697,1.53,2023.3,2023.0,3.43012851]
[1772134947897,1.53,2023.5,2023.1,0.82557919]
[1772134949034,1.53,2023.6,2023.2,0.82557919]
[1772134949328,0.8339146,2023.8,2023.2,0.82557919]
[1772134949521,2.06909246,2024.0,2023.2,0.82557919]
[1772134949723,0.8339146,2023.9,2023.3,1.23560519]
[1772134950633,0.8339146,2023.9,2023.2,2.06120704]
[1772134951329,0.8339146,2023.9,2023.2,2.06124274]
[1772134951633,6.47050208,2024.1,2023.2,2.06124274]
[1772134951634,0.8339146,2024.1,2023.5,0.82557919]
[1772134951935,1.529,2024.2,2023.8,0.82557919]
[1772134952130,7.66349583,2024.8,2024.0,2.19434008]
[1772134952131,0.799,2024.4,2024.0,2.19434008]
[1772134952708,0.799,2024.4,2024.0,0.82557919]
[1772134953214,0.799,2024.4,2023.8,0.82557919]
[1772134953215,1.6329146,2024.4,2023.8,0.82557919]
[1772134954022,2.86790474,2024.4,2023.8,2.06083602]
[1772134956334,1.6329146,2024.4,2023.8,2.06083602]
[1772134956745,2.86785639,2024.4,2023.8,2.06083602]
[1772134957350,2.06885639,2024.4,2023.8,2.06083602]
[1772134957551,1.529,2024.3,2023.8,2.06083602]
[1772134957847,0.85271989,2024.6,2024.0,0.86985151]
[1772134958014,1.529,2024.5,2024.0,0.86985151]
[1772134958416,0.85271989,2024.4,2023.7,0.86985151]
[1772134958621,0.85271989,2024.4,2023.8,4.94117654]
[1772134959049,0.85271989,2024.4,2023.8,5.81102805]
[1772134959742,0.85271989,2024.4,2023.8,2.10515144]
[1772134959945,0.85271989,2024.4,2023.8,0.86985151]
[1772134960444,0.80666199,2024.2,2023.5,0.85030145]
[1772134960628,0.80666199,2024.2,2023.5,2.08574925]
[1772134961030,0.80666199,2024.2,2023.5,2.08674925]
[1772134961231,0.80866199,2024.2,2023.5,2.08674925]
[1772134962750,2.04177883,2024.1,2023.5,2.08674925]
[1772134963257,0.80666199,2024.0,2023.5,2.08674925]
[1772134967152,0.80866199,2024.2,2023.6,0.85030145]
[1772134967453,2.04372018,2024.2,2023.6,0.85030145]
[1772134967957,0.80666199,2024.1,2023.6,0.85030145]
[1772134968855,0.80866199,2024.2,2023.6,0.85030145]
[1772134969033,0.002,2024.2,2023.7,0.85030145]
[1772134969234,0.80666199,2024.1,2022.8,0.32817211]
[1772134969431,0.80666199,2024.1,2023.2,0.85030145]
[1772134970758,0.80666199,2024.1,2023.4,0.85030145]
[1772134970939,0.002,2024.2,2023.4,0.85030145]
[1772134971256,1.23511684,2024.1,2023.5,1.23548307]
[1772134971493,1.23511684,2024.1,2023.5,2.08578452]
[1772134971695,2.04177883,2024.1,2023.5,2.08578452]
[1772134971863,0.80666199,2024.0,2023.4,1.23549672]
[1772134972371,2.04376571,2024.2,2023.6,0.85030145]
[1772134973088,0.80666199,2024.1,2023.6,0.85030145]
[1772134973989,2.04178138,2024.1,2023.6,2.08572302]
[1772134974191,2.04178138,2024.1,2023.6,2.08571151]
[1772134974995,0.80666199,2024.1,2023.6,2.08571151]
[1772134975216,0.002,2024.2,2023.7,0.85030145]
[1772134975512,0.002,2024.2,2024.0,0.85030145]
[1772134975990,0.80666199,2024.5,2024.0,1.23515517]
[1772134976319,0.80666199,2024.6,2023.5,0.001]
[1772134976473,0.80666199,2024.2,2023.5,0.001]
[1772134978108,0.80666199,2024.0,2023.5,0.001]
[1772134980094,2.04190088,2023.9,2023.5,0.001]
[1772134980895,0.80666199,2023.8,2023.5,0.001]
[1772134982080,2.04202184,2023.8,2023.5,0.001]
[1772134986790,1.23522764,2024.0,2023.5,0.85130145]
[1772134987211,0.80666199,2023.9,2023.5,0.85130145]
[1772134988817,1.23529993,2023.8,2023.7,0.001]
[1772134989396,1.23729993,2023.8,2023.7,0.001]
[1772135000123,0.002,2023.8,2023.7,0.001]
[1772135000806,0.002,2023.8,2023.7,0.86883603]
[1772135002106,0.002,2023.8,2023.7,0.001]
[1772135005438,0.88855294,2023.8,2023.7,0.001]
[1772135006327,0.88855294,2023.8,2023.5,0.001]
[1772135007636,0.88855294,2024.1,2023.7,1.27847953]
[1772135007821,1.86745246,2024.2,2023.9,0.4106435]
[1772135008341,1.86745246,2024.2,2023.9,1.27847953]
[1772135009739,0.63238853,2024.2,2023.9,1.27847953]
[1772135010309,0.53718844,2024.4,2024.1,1.27847953]
[1772135010535,0.53718844,2024.4,2024.1,0.86783603]
[1772135013008,0.53718844,2024.4,2024.1,2.10294438]
[1772135013534,0.53718844,2024.4,2024.1,0.86783603]
[1772135013735,3.95946561,2024.8,2024.3,0.86783603]
[1772135013941,4.93841072,2025.0,2024.5,1.30180799]
[1772135014842,0.00142189,2024.9,2024.5,1.30180799]
[1772135017328,0.002,2024.7,2024.5,1.30180799]
[1772135017521,0.002,2025.1,2024.6,2.07416449]
[1772135017727,0.002,2025.1,2024.8,0.89116449]
[1772135022048,0.002,2025.1,2024.8,2.12585308]
[1772135022748,0.002,2025.1,2024.9,0.89116449]
[1772135022922,0.0094277,2025.3,2025.0,0.89116449]
[1772135023117,0.00805598,2025.2,2024.9,1.30180799]
[1772135024848,0.00805598,2025.2,2024.8,2.07816449]
[1772135026949,1.24250375,2025.2,2024.8,3.31385412]
[1772135027148,0.00805598,2025.2,2024.8,3.31385412]
[1772135028139,0.00805598,2025.2,2024.9,0.4106435]
[1772135028864,0.002,2025.0,2024.9,0.4106435]
[1772135029039,0.00805598,2025.2,2024.9,0.4106435]
[1772135029434,0.01005598,2025.2,2024.9,0.4106435]
[1772135030368,0.01227991,2025.1,2024.8,2.07916449]
[1772135030547,0.01227991,2025.1,2024.8,3.31385288]
[1772135030856,0.01227991,2025.4,2025.1,0.89116449]
[1772135031057,1.23414362,2025.7,2025.3,1.30180799]
[1772135031359,1.23414362,2025.7,2025.1,1.64512329]
[1772135031360,1.23611076,2025.8,2025.5,1.30823079]
[1772135031533,1.23611076,2025.8,2025.5,0.89758729]
[1772135031735,1.23611076,2025.8,2025.3,1.30823079]
[1772135031940,0.002,2025.8,2025.5,0.4106435]
[1772135032145,1.23609065,2025.8,2025.5,0.89758729]
[1772135032456,0.002,2025.8,2025.4,0.89758729]
[1772135033047,0.0031425,2025.8,2025.4,0.89758729]
[1772135033239,0.0031425,2025.8,2025.4,2.13190789]
[1772135035266,0.0031425,2025.8,2025.4,2.13191085]
[1772135035649,0.0031425,2025.8,2025.5,0.89758729]
[1772135036166,0.0031425,2025.8,2025.4,0.89758729]
[1772135036365,0.00281892,2025.7,2025.4,0.89758729]
[1772135036938,0.00335705,2025.7,2025.4,0.89758729]
[1772135037971,0.00335705,2025.7,2025.3,1.194]
[1772135038268,0.00335705,2025.7,2025.3,2.09158729]
[1772135038567,0.00335705,2025.7,2025.3,0.89758729]
[1772135040538,0.00335705,2025.7,2025.4,0.89758729]
[1772135042472,0.002,2025.5,2025.4,0.89758729]
[1772135043874,0.00649919,2025.4,2025.2,1.198]
[1772135044168,0.00649919,2025.4,2024.8,0.001]
[1772135050276,0.00649919,2025.4,2024.8,0.89908729]
[1772135050478,0.01138265,2025.5,2024.8,0.89908729]
[1772135050781,0.002,2025.5,2024.8,0.89908729]
[1772135052183,0.01230108,2025.5,2025.0,0.89808729]
[1772135054081,4.93629684,2025.9,2025.2,0.90368663]
[1772135054265,0.002,2026.0,2025.3,0.90368663]
[1772135054785,0.002,2026.0,2025.0,0.90368663]
[1772135055357,0.41008346,2025.7,2025.0,0.90368663]
[1772135055883,0.00090135,2025.6,2025.2,0.001]
[1772135056053,0.00290135,2025.5,2025.2,0.001]
[1772135056771,0.00090135,2025.2,2025.0,0.001]
[1772135059599,0.00090135,2025.2,2024.2,0.08192]
[1772135059775,0.002,2025.5,2023.8,0.90518663]
[1772135059776,0.00121343,2024.7,2023.8,0.90518663]
[1772135059980,0.00121343,2024.7,2024.1,0.90518663]
[1772135060157,0.00121343,2024.7,2024.1,0.90418663]
[1772135060982,0.00121343,2024.7,2024.0,0.001]
[1772135061172,0.00121343,2024.7,2024.1,0.001]
[1772135061379,0.00121343,2024.7,2024.0,0.90518663]
[1772135062164,0.00121343,2024.7,2024.0,0.001]
[1772135062981,0.03194524,2024.6,2024.0,0.001]
[1772135064182,0.03194524,2024.6,2024.0,0.90518663]
[1772135064890,0.02912953,2024.4,2024.0,0.001]
[1772135065388,0.02772413,2024.1,2023.8,0.001]
[1772135066892,1.23517786,2024.0,2023.8,0.001]
[1772135067895,0.02493672,2023.9,2023.1,0.90418663]
[1772135068191,1.23517786,2024.0,2023.2,0.90518663]
[1772135068362,1.23516473,2024.1,2023.2,0.90518663]
[1772135068968,1.23516473,2024.1,2023.4,0.90418663]
[1772135070092,1.25590975,2024.1,2023.6,0.90418663]
[1772135070585,1.23516473,2024.1,2023.7,0.90518663]
[1772135070771,4.93980245,2024.4,2023.7,0.90618663]
[1772135071382,4.93980245,2024.4,2023.8,0.90418663]
[1772135073203,4.93980245,2024.4,2023.9,0.90518663]
[1772135073500,1.2349338,2024.4,2023.9,0.90418663]
[1772135075495,0.00444295,2024.4,2023.9,0.90418663]
[1772135076000,0.00444295,2024.4,2023.8,0.90518663]
[1772135076600,4.93973523,2024.7,2023.8,0.90518663]
[1772135076800,4.93973523,2024.7,2023.9,0.90418663]
[1772135077398,4.93973523,2024.7,2023.8,0.90518663]
[1772135078784,4.93973523,2024.7,2023.9,0.90418663]
[1772135079294,4.93973523,2024.7,2024.1,0.90418663]
[1772135080205,4.93866398,2024.9,2024.3,0.90418663]
[1772135080402,4.93866398,2024.9,2024.4,0.90418663]
[1772135081204,4.93866398,2024.9,2024.5,0.001]
[1772135082417,0.002,2025.0,2024.5,0.001]
[1772135082795,0.002,2024.7,2024.5,0.001]
[1772135083719,0.002,2024.9,2024.5,0.001]
[1772135084060,0.002,2024.9,2024.6,0.90318663]
[1772135087185,0.002,2024.9,2024.8,0.90318663]
[1772135087584,0.002,2024.9,2024.8,0.90418663]
[1772135089125,0.002,2024.9,2024.8,0.001]
[1772135091313,0.002,2024.9,2024.3,0.90318663]
[1772135091544,0.002,2024.9,2024.5,0.001]
[1772135091819,1.23662887,2024.9,2024.5,0.001]
[1772135094318,1.23662887,2024.9,2024.2,1.189]
[1772135094898,1.23662887,2024.9,2024.7,0.001]
[1772135095220,1.23662887,2024.9,2024.2,1.189]
[1772135095424,1.23662887,2024.9,2024.5,0.001]
[1772135096395,0.002,2024.9,2024.5,0.90418663]
[1772135100227,0.002,2024.9,2024.6,0.90318663]
[1772135100630,1.23644598,2025.2,2024.8,0.90218663]
[1772135101652,0.002,2025.2,2025.0,0.90218663]
[1772135102130,0.002,2025.2,2024.9,1.188]
[1772135102131,0.002,2025.5,2024.9,1.188]
[1772135102309,1.36982482,2025.5,2024.9,1.188]
[1772135104220,1.23432408,2025.4,2025.0,0.90218663]
[1772135104453,1.23630627,2025.5,2025.0,0.90218663]
[1772135104819,0.002,2025.5,2025.0,0.90218663]
[1772135105340,1.23626851,2025.5,2025.0,0.90218663]
[1772135106660,0.002,2025.5,2025.0,0.90218663]
[1772135107236,0.002,2025.5,2025.1,0.90318663]
[1772135107442,0.002,2025.3,2025.1,0.90318663]
[1772135109159,0.002,2025.5,2025.2,0.90218663]
[1772135109318,0.002,2025.7,2025.3,0.90118663]
[1772135111063,0.002,2025.7,2025.5,0.90118663]
[1772135111256,0.002,2025.7,2025.6,2.09118663]
[1772135113443,0.002,2025.7,2025.6,1.19]
[1772135114027,0.002,2025.7,2025.6,2.09118663]
[1772135114343,0.002,2026.0,2025.7,0.90018663]
[1772135116952,0.002,2026.0,2025.6,1.19]
[1772135118456,0.002,2026.0,2025.7,0.90018663]
[1772135118750,0.002,2026.0,2025.7,1.23413751]
[1772135118954,0.002,2026.0,2025.8,0.90018663]
[1772135119127,3.94611227,2026.6,2025.8,0.90018663]
[1772135120455,1.23565408,2026.5,2025.8,0.90018663]
[1772135120752,0.002,2026.5,2026.0,0.89918663]
[1772135121063,0.002,2026.3,2026.2,0.89918663]
[1772135121223,0.002,2026.3,2026.2,2.09218663]
[1772135123445,0.002,2026.3,2026.2,1.168316]
[1772135124059,0.002,2026.3,2025.7,1.194]
[1772135124245,0.80224423,2026.2,2025.4,1.193]
[1772135124447,0.80224423,2025.6,2024.6,1.04580913]
[1772135124629,0.80224423,2025.9,2025.0,0.24480913]
[1772135124831,0.80224423,2025.9,2025.1,0.24480913]
[1772135125055,1.23399591,2026.0,2025.3,0.24655637]
[1772135125249,2.03618736,2026.1,2025.3,0.24655637]
[1772135126670,0.80224423,2026.0,2025.3,0.24655637]
[1772135126962,2.03625902,2026.0,2025.4,1.23432408]
[1772135127445,2.03625902,2026.0,2025.4,1.52530448]
[1772135127647,1.23393177,2026.1,2025.5,0.2909804]
[1772135128159,0.80224423,2026.0,2025.4,1.23432408]
[1772135128334,0.80224423,2026.0,2025.4,1.5251548]
[1772135129964,2.03624682,2026.0,2025.4,1.5251548]
[1772135130143,0.80224423,2025.9,2025.4,1.23432408]
[1772135131350,2.03618015,2026.1,2025.4,1.52412894]
[1772135131866,0.80224423,2026.1,2025.5,0.28980486]
[1772135132044,2.03804578,2026.3,2025.6,1.52335231]
[1772135132867,0.002,2025.8,2025.6,1.52435231]
[1772135133167,2.03804578,2026.3,2025.6,1.52435231]
[1772135133465,0.002,2026.0,2025.6,1.52435231]
[1772135133665,0.002,2026.0,2025.6,0.001]
[1772135133867,0.80424423,2026.0,2025.6,0.001]
[1772135134569,2.03821145,2026.0,2025.6,0.001]
[1772135134740,0.80424423,2026.0,2025.6,0.001]
[1772135134945,2.03820901,2026.0,2025.6,0.001]
[1772135135155,0.80424423,2026.0,2025.6,0.001]
[1772135138665,2.03820323,2026.0,2025.6,0.001]
[1772135139563,0.80424423,2026.0,2025.6,0.001]
[1772135139769,2.03820523,2026.0,2025.6,0.001]
[1772135139944,2.0382043,2026.0,2025.6,0.001]
[1772135141669,0.80424423,2026.0,2025.6,0.001]
[1772135142943,0.80424423,2026.0,2025.6,0.28436322]
[1772135143273,2.03822098,2026.0,2025.6,0.28436322]
[1772135143568,0.80424423,2026.0,2025.6,0.28436322]
[1772135143773,0.80424423,2026.0,2025.6,1.51851271]
[1772135143972,0.002,2026.3,2025.8,0.28258835]
[1772135144266,0.002,2026.3,2026.0,0.28258835]
[1772135145448,0.002,2026.5,2026.0,0.28182681]
[1772135145644,0.87053357,2026.9,2026.2,0.27982681]
[1772135145849,2.10384663,2027.1,2026.2,0.27982681]
[1772135146063,0.002,2027.2,2026.5,0.27902188]
[1772135146256,0.87053357,2027.1,2026.6,1.2]
[1772135147154,0.87053357,2027.1,2026.1,1.027]
[1772135147967,0.87053357,2026.9,2026.1,2.26086691]
[1772135148173,0.87053357,2026.9,2026.1,1.027]
[1772135150279,1.23347148,2026.8,2026.2,0.29379391]
[1772135150481,2.10400505,2026.8,2026.2,0.29379391]
[1772135150690,0.87053357,2026.8,2026.2,0.29379391]
[1772135151188,1.23338183,2027.0,2026.2,0.29379391]
[1772135151189,0.87053357,2026.9,2026.2,0.29379391]
[1772135153892,2.10398649,2026.9,2026.3,1.23377584]
[1772135154188,0.87053357,2026.8,2026.1,2.55113945]
[1772135154568,0.87053357,2026.8,2026.1,2.55117406]
[1772135154968,0.87053357,2026.8,2026.1,2.26088495]
[1772135155376,0.87053357,2026.8,2026.1,2.26089517]
[1772135155789,0.87053357,2026.8,2026.1,2.55028817]
[1772135156092,2.10406591,2026.7,2026.1,2.55028817]
[1772135156666,0.87053357,2026.6,2026.1,2.55028817]